[Event "*** Titled Tuesday Blitz"]
[Site "Chess.com"]
[Date "2020.05.26"]
[Round "5"]
[White "Dinamo81"]
[Black "BillieKimbah"]
[Result "0-1"]
[WhiteElo "2621"]
[BlackElo "2855"]
[TimeControl "180+1"]
[EndTime "10:57:53 PDT"]
[Termination "BillieKimbah won on time"]

1. d4 {[%clk 0:03:00.9]} 1... e6 {[%clk 0:02:57.4]} 2. e4 {[%clk 0:02:58.7]}
2... d5 {[%clk 0:02:53.1]} 3. exd5 {[%clk 0:02:59.6]} 3... exd5 {[%clk
0:02:52.9]} 4. Nf3 {[%clk 0:02:59.8]} 4... Bd6 {[%clk 0:02:50.9]} 5. Bd3 {[%clk
0:02:57.5]} 5... Ne7 {[%clk 0:02:49.9]} 6. O-O {[%clk 0:02:48.2]} 6... Nbc6
{[%clk 0:02:49.9]} 7. c4 {[%clk 0:02:46.9]} 7... dxc4 {[%clk 0:02:48.3]} 8. Bxc4
{[%clk 0:02:45.4]} 8... O-O {[%clk 0:02:48.2]} 9. Nc3 {[%clk 0:02:37.7]} 9...
Bg4 {[%clk 0:02:45.4]} 10. h3 {[%clk 0:02:36.3]} 10... Bh5 {[%clk 0:02:45]} 11.
Re1 {[%clk 0:02:17.9]} 11... Re8 {[%clk 0:02:35.6]} 12. Bg5 {[%clk 0:02:09.5]}
12... h6 {[%clk 0:02:35]} 13. Be3 {[%clk 0:01:42.9]} 13... Nf5 {[%clk
0:02:33.7]} 14. g4 {[%clk 0:01:34.6]} 14... Nxe3 {[%clk 0:02:31.3]} 15. fxe3
{[%clk 0:01:35.5]} 15... Bg6 {[%clk 0:02:31.2]} 16. Kg2 {[%clk 0:01:28.8]} 16...
Qd7 {[%clk 0:02:21.2]} 17. Bd3 {[%clk 0:01:25.7]} 17... Ne7 {[%clk 0:02:16.9]}
18. Rc1 {[%clk 0:01:07.1]} 18... c6 {[%clk 0:02:16.3]} 19. Nh4 {[%clk
0:01:03.4]} 19... Bc7 {[%clk 0:02:07.6]} 20. Bxg6 {[%clk 0:00:48.7]} 20... Nxg6
{[%clk 0:02:08.5]} 21. Nf5 {[%clk 0:00:48.2]} 21... Ne7 {[%clk 0:02:08]} 22. Qf3
{[%clk 0:00:46.7]} 22... Nxf5 {[%clk 0:02:07.1]} 23. gxf5 {[%clk 0:00:47.6]}
23... Qd6 {[%clk 0:02:05.7]} 24. Rh1 {[%clk 0:00:43.6]} 24... f6 {[%clk
0:01:51.3]} 25. h4 {[%clk 0:00:41]} 25... Re7 {[%clk 0:01:51.1]} 26. Rh3 {[%clk
0:00:40.7]} 26... Rae8 {[%clk 0:01:50.3]} 27. Re1 {[%clk 0:00:40.7]} 27... b5
{[%clk 0:01:45.2]} 28. a3 {[%clk 0:00:38.3]} 28... a5 {[%clk 0:01:44.8]} 29. Re2
{[%clk 0:00:37.4]} 29... Kh8 {[%clk 0:01:41.4]} 30. Nd1 {[%clk 0:00:36.6]} 30...
c5 {[%clk 0:01:37.7]} 31. Nc3 {[%clk 0:00:27.3]} 31... cxd4 {[%clk 0:01:16]} 32.
Nxb5 {[%clk 0:00:27]} 32... Qc5 {[%clk 0:01:15.8]} 33. Nxd4 {[%clk 0:00:26.8]}
33... Qxd4 {[%clk 0:01:15.7]} 34. exd4 {[%clk 0:00:24.4]} 34... Rxe2+ {[%clk
0:01:16.6]} 35. Kf1 {[%clk 0:00:24.3]} 35... Rxb2 {[%clk 0:01:10.7]} 36. Qc6
{[%clk 0:00:24.3]} 36... Re7 {[%clk 0:01:01]} 37. d5 {[%clk 0:00:24.1]} 37...
Bb6 {[%clk 0:00:58.8]} 38. Rf3 {[%clk 0:00:22.9]} 38... Rb1+ {[%clk 0:00:53.7]}
39. Kg2 {[%clk 0:00:23]} 39... Re2+ {[%clk 0:00:53.7]} 40. Kh3 {[%clk
0:00:21.3]} 40... Rh1+ {[%clk 0:00:43.1]} 41. Kg3 {[%clk 0:00:20.9]} 41... Rg1+
{[%clk 0:00:40.5]} 42. Kf4 {[%clk 0:00:18.9]} 42... Bd4 {[%clk 0:00:33.1]} 43.
Rg3 {[%clk 0:00:12.5]} 43... Be5+ {[%clk 0:00:32.6]} 44. Kf3 {[%clk 0:00:12.8]}
44... Rxg3+ {[%clk 0:00:16.2]} 45. Kxe2 {[%clk 0:00:12.6]} 45... Rxa3 {[%clk
0:00:14.1]} 46. d6 {[%clk 0:00:11]} 46... Bxd6 {[%clk 0:00:13.6]} 47. Qxd6
{[%clk 0:00:10.3]} 47... Ra2+ {[%clk 0:00:14]} 48. Ke3 {[%clk 0:00:10.4]} 48...
Rg2 {[%clk 0:00:12.4]} 49. Qd8+ {[%clk 0:00:08.9]} 49... Kh7 {[%clk 0:00:11.9]}
50. Qxa5 {[%clk 0:00:09.4]} 50... h5 {[%clk 0:00:09.7]} 51. Qd5 {[%clk
0:00:08.4]} 51... Rg4 {[%clk 0:00:09.2]} 52. Qh1 {[%clk 0:00:05.7]} 52... Rg3+
{[%clk 0:00:08.5]} 53. Kf4 {[%clk 0:00:05.4]} 53... Rg4+ {[%clk 0:00:09.4]} 54.
Kf3 {[%clk 0:00:05.7]} 54... Kh6 {[%clk 0:00:09.7]} 55. Qc1+ {[%clk 0:00:04.9]}
55... Kh7 {[%clk 0:00:09.8]} 56. Qe1 {[%clk 0:00:05.5]} 56... Ra4 {[%clk
0:00:04.1]} 57. Qe8 {[%clk 0:00:05.3]} 57... Rxh4 {[%clk 0:00:03.7]} 58. Qg6+
{[%clk 0:00:05.2]} 58... Kh8 {[%clk 0:00:04]} 59. Ke3 {[%clk 0:00:05.5]} 59...
Kg8 {[%clk 0:00:03.1]} 60. Qe8+ {[%clk 0:00:04.4]} 60... Kh7 {[%clk 0:00:03.3]}
61. Qg6+ {[%clk 0:00:05.3]} 61... Kg8 {[%clk 0:00:03.7]} 62. Qg3 {[%clk
0:00:04.6]} 62... Rg4 {[%clk 0:00:03.5]} 63. Qh3 {[%clk 0:00:04.3]} 63... Rg5
{[%clk 0:00:03.8]} 64. Ke4 {[%clk 0:00:04.6]} 64... Kh7 {[%clk 0:00:04.2]} 65.
Qh2 {[%clk 0:00:02]} 65... Rg4+ {[%clk 0:00:04.4]} 0-1

[Event "*** Titled Tuesday Blitz"]
[Site "Chess.com"]
[Date "2020.05.26"]
[Round "5"]
[White "WPWPWP-2015"]
[Black "Meri-Arabidze"]
[Result "0-1"]
[WhiteElo "2362"]
[BlackElo "2579"]
[TimeControl "180+1"]
[EndTime "10:57:54 PDT"]
[Termination "Meri-Arabidze won by checkmate"]

1. e4 {[%clk 0:02:47.4]} 1... c5 {[%clk 0:02:58.7]} 2. Nf3 {[%clk 0:02:44.3]}
2... e6 {[%clk 0:02:58.6]} 3. d4 {[%clk 0:02:43]} 3... cxd4 {[%clk 0:02:59.5]}
4. Nxd4 {[%clk 0:02:38.7]} 4... Nc6 {[%clk 0:03:00.4]} 5. Nc3 {[%clk 0:02:36.7]}
5... a6 {[%clk 0:03:00.6]} 6. Be2 {[%clk 0:02:32.7]} 6... Qc7 {[%clk 0:02:59.8]}
7. O-O {[%clk 0:02:25.4]} 7... Nf6 {[%clk 0:02:58.7]} 8. Be3 {[%clk 0:02:24.4]}
8... d6 {[%clk 0:02:58.7]} 9. Nxc6 {[%clk 0:02:23.7]} 9... bxc6 {[%clk
0:02:58.4]} 10. f4 {[%clk 0:02:21.1]} 10... Be7 {[%clk 0:02:58.6]} 11. Bf3
{[%clk 0:02:19.9]} 11... O-O {[%clk 0:02:57.2]} 12. Qe1 {[%clk 0:02:19.2]} 12...
Rb8 {[%clk 0:02:55.5]} 13. b3 {[%clk 0:02:18.5]} 13... d5 {[%clk 0:02:54]} 14.
e5 {[%clk 0:02:17.7]} 14... Nd7 {[%clk 0:02:53.9]} 15. Qg3 {[%clk 0:02:14.2]}
15... c5 {[%clk 0:02:52.7]} 16. Bd2 {[%clk 0:02:09.6]} 16... Bb7 {[%clk
0:02:50.3]} 17. Rae1 {[%clk 0:02:08.3]} 17... Qd8 {[%clk 0:02:17.6]} 18. f5
{[%clk 0:01:59.6]} 18... Bh4 {[%clk 0:02:16.8]} 19. Qg4 {[%clk 0:01:44.9]} 19...
exf5 {[%clk 0:02:13.6]} 20. Qxf5 {[%clk 0:01:43.4]} 20... Bxe1 {[%clk
0:02:14.2]} 21. Rxe1 {[%clk 0:01:43.1]} 21... Nb6 {[%clk 0:01:41.2]} 22. Bg5
{[%clk 0:01:33.7]} 22... Qc8 {[%clk 0:01:37.5]} 23. Qf4 {[%clk 0:01:27.9]} 23...
Re8 {[%clk 0:01:32.9]} 24. Qg3 {[%clk 0:01:17.3]} 24... Qf5 {[%clk 0:01:30.2]}
25. Bf4 {[%clk 0:01:15.9]} 25... Qg6 {[%clk 0:01:09.9]} 26. Qf2 {[%clk
0:01:08.7]} 26... Rbc8 {[%clk 0:01:06.4]} 27. h3 {[%clk 0:01:02.5]} 27... Ba8
{[%clk 0:00:57.4]} 28. Bg4 {[%clk 0:01:01.4]} 28... Rc6 {[%clk 0:00:54.6]} 29.
Bf3 {[%clk 0:00:54]} 29... Rcc8 {[%clk 0:00:53.7]} 30. Bg4 {[%clk 0:00:52.9]}
30... Rc6 {[%clk 0:00:47.2]} 31. a4 {[%clk 0:00:51.3]} 31... d4 {[%clk
0:00:25.6]} 32. Ne4 {[%clk 0:00:50.5]} 32... Nd5 {[%clk 0:00:24]} 33. Bg3 {[%clk
0:00:46]} 33... Rf8 {[%clk 0:00:20.4]} 34. Bf5 {[%clk 0:00:44.2]} 34... Qh5
{[%clk 0:00:20.6]} 35. Bg4 {[%clk 0:00:35.9]} 35... Qh6 {[%clk 0:00:20.8]} 36.
Nd6 {[%clk 0:00:34.5]} 36... Ne3 {[%clk 0:00:19.9]} 37. Be2 {[%clk 0:00:15.8]}
37... Rb6 {[%clk 0:00:18]} 38. Bf4 {[%clk 0:00:14.8]} 38... Qg6 {[%clk
0:00:17.3]} 39. Bd3 {[%clk 0:00:07.1]} 39... Qxg2+ {[%clk 0:00:16.9]} 40. Qxg2
{[%clk 0:00:06.9]} 40... Nxg2 {[%clk 0:00:17.8]} 41. Rf1 {[%clk 0:00:06.8]}
41... Nxf4 {[%clk 0:00:18.5]} 42. Rxf4 {[%clk 0:00:07.2]} 42... Bd5 {[%clk
0:00:16.8]} 43. a5 {[%clk 0:00:06.6]} 43... Rc6 {[%clk 0:00:16.1]} 44. Nf5
{[%clk 0:00:06.5]} 44... Rg6+ {[%clk 0:00:14]} 45. Kf2 {[%clk 0:00:06]} 45...
Re8 {[%clk 0:00:14.4]} 46. Nd6 {[%clk 0:00:03.7]} 46... Rd8 {[%clk 0:00:12.8]}
47. Bxg6 {[%clk 0:00:03.2]} 47... hxg6 {[%clk 0:00:13.7]} 48. Nc4 {[%clk
0:00:03.1]} 48... Bxc4 {[%clk 0:00:13.6]} 49. bxc4 {[%clk 0:00:03.3]} 49... Rb8
{[%clk 0:00:14.2]} 50. Kf3 {[%clk 0:00:03.4]} 50... Rb4 {[%clk 0:00:14.3]} 51.
Ke4 {[%clk 0:00:04.2]} 51... Rxc4 {[%clk 0:00:14.6]} 52. Rf2 {[%clk 0:00:04.3]}
52... Rc3 {[%clk 0:00:14.8]} 53. Kd5 {[%clk 0:00:04.4]} 53... g5 {[%clk
0:00:11.3]} 54. Kd6 {[%clk 0:00:04.4]} 54... c4 {[%clk 0:00:11.2]} 55. Kd5
{[%clk 0:00:03.2]} 55... d3 {[%clk 0:00:11.4]} 56. cxd3 {[%clk 0:00:03.7]} 56...
cxd3 {[%clk 0:00:12]} 57. Rd2 {[%clk 0:00:03.8]} 57... Ra3 {[%clk 0:00:12.2]}
58. Kd6 {[%clk 0:00:02.9]} 58... g6 {[%clk 0:00:11.2]} 59. Rf2 {[%clk
0:00:02.4]} 59... Kg7 {[%clk 0:00:11.4]} 60. Ke7 {[%clk 0:00:02.6]} 60... Rxa5
{[%clk 0:00:10.3]} 61. Rxf7+ {[%clk 0:00:02.6]} 61... Kh6 {[%clk 0:00:11]} 62.
Kf6 {[%clk 0:00:01.6]} 62... Rd5 {[%clk 0:00:10.3]} 63. Rd7 {[%clk 0:00:02.5]}
63... Rxd7 {[%clk 0:00:10]} 64. e6 {[%clk 0:00:03.4]} 64... Rd6 {[%clk
0:00:10.1]} 65. Kf7 {[%clk 0:00:03.3]} 65... Rxe6 {[%clk 0:00:10.5]} 66. h4
{[%clk 0:00:03.9]} 66... d2 {[%clk 0:00:11.3]} 67. Kg8 {[%clk 0:00:04]} 67...
gxh4 {[%clk 0:00:11.1]} 68. Kh8 {[%clk 0:00:03.3]} 68... Re8# {[%clk 0:00:10.5]}
0-1

[Event "*** Titled Tuesday Blitz"]
[Site "Chess.com"]
[Date "2020.05.26"]
[Round "5"]
[White "VMikhalevski"]
[Black "DortmundCity"]
[Result "1-0"]
[WhiteElo "2752"]
[BlackElo "2579"]
[TimeControl "180+1"]
[EndTime "10:58:00 PDT"]
[Termination "VMikhalevski won by resignation"]

1. d4 {[%clk 0:03:00.9]} 1... d5 {[%clk 0:02:55.1]} 2. c4 {[%clk 0:02:59.8]}
2... c6 {[%clk 0:02:55.2]} 3. cxd5 {[%clk 0:02:59.6]} 3... cxd5 {[%clk
0:02:55.2]} 4. Bg5 {[%clk 0:03:00.3]} 4... Qb6 {[%clk 0:02:53.5]} 5. Nc3 {[%clk
0:02:59]} 5... e6 {[%clk 0:02:50.5]} 6. Qd2 {[%clk 0:02:52.4]} 6... Nc6 {[%clk
0:02:48.5]} 7. e3 {[%clk 0:02:52.4]} 7... Nf6 {[%clk 0:02:33.8]} 8. Bxf6 {[%clk
0:02:51.4]} 8... gxf6 {[%clk 0:02:33.9]} 9. Bd3 {[%clk 0:02:47.2]} 9... f5
{[%clk 0:02:33.2]} 10. Nge2 {[%clk 0:02:45.5]} 10... Bd6 {[%clk 0:02:28.5]} 11.
g3 {[%clk 0:02:44.1]} 11... a6 {[%clk 0:02:23.2]} 12. Rc1 {[%clk 0:02:42.9]}
12... Qd8 {[%clk 0:02:18]} 13. Nf4 {[%clk 0:02:35.6]} 13... Bd7 {[%clk
0:02:14.3]} 14. Qe2 {[%clk 0:02:22]} 14... b5 {[%clk 0:02:11]} 15. Qh5 {[%clk
0:02:09.6]} 15... Qf6 {[%clk 0:02:05.9]} 16. Bb1 {[%clk 0:01:57.4]} 16... Rc8
{[%clk 0:01:57.4]} 17. Nce2 {[%clk 0:01:54.7]} 17... Rc7 {[%clk 0:01:47.5]} 18.
Nd3 {[%clk 0:01:51.4]} 18... Qg6 {[%clk 0:01:44.5]} 19. Qf3 {[%clk 0:01:45]}
19... Qf6 {[%clk 0:01:43.4]} 20. Nef4 {[%clk 0:01:41.8]} 20... O-O {[%clk
0:01:25.5]} 21. O-O {[%clk 0:01:39.7]} 21... Rfc8 {[%clk 0:01:24.8]} 22. Nc5
{[%clk 0:01:31]} 22... Be8 {[%clk 0:01:11.2]} 23. Nfd3 {[%clk 0:01:25]} 23... a5
{[%clk 0:01:04.3]} 24. a3 {[%clk 0:01:16.7]} 24... b4 {[%clk 0:01:04.3]} 25. Rc2
{[%clk 0:01:10.6]} 25... bxa3 {[%clk 0:00:50.9]} 26. bxa3 {[%clk 0:01:09.9]}
26... e5 {[%clk 0:00:51.3]} 27. Qxd5 {[%clk 0:00:54.2]} 27... exd4 {[%clk
0:00:47.9]} 28. Na6 {[%clk 0:00:47.2]} 28... Ne7 {[%clk 0:00:36.2]} 29. Nxc7
{[%clk 0:00:38]} 29... Nxd5 {[%clk 0:00:36.4]} 30. Nxd5 {[%clk 0:00:38]} 30...
Qd8 {[%clk 0:00:37]} 31. Rxc8 {[%clk 0:00:33.2]} 31... Qxc8 {[%clk 0:00:37.9]}
32. Nf6+ {[%clk 0:00:30.9]} 32... Kg7 {[%clk 0:00:35.8]} 33. Nxe8+ {[%clk
0:00:30.5]} 33... Qxe8 {[%clk 0:00:35.3]} 34. exd4 {[%clk 0:00:30.8]} 34... Bxa3
{[%clk 0:00:35.5]} 35. Nf4 {[%clk 0:00:30.9]} 35... Bb2 {[%clk 0:00:32.6]} 36.
d5 {[%clk 0:00:27.5]} 36... a4 {[%clk 0:00:32.1]} 37. Rd1 {[%clk 0:00:25.4]}
37... Be5 {[%clk 0:00:18.4]} 38. d6 {[%clk 0:00:20.9]} 38... Qd7 {[%clk
0:00:17.8]} 39. Nh5+ {[%clk 0:00:16.2]} 39... Kh6 {[%clk 0:00:17.2]} 40. g4
{[%clk 0:00:12]} 40... Bxd6 {[%clk 0:00:13.6]} 41. Ng3 {[%clk 0:00:10.8]} 41...
Qc7 {[%clk 0:00:05.1]} 42. Rxd6+ {[%clk 0:00:08.5]} 42... Kg5 {[%clk 0:00:05.4]}
43. h4+ {[%clk 0:00:05.9]} 43... Kxg4 {[%clk 0:00:04.3]} 44. Bxf5+ {[%clk
0:00:05.5]} 44... Kf4 {[%clk 0:00:03.9]} 45. Rd4+ {[%clk 0:00:04.8]} 45... Ke5
{[%clk 0:00:03.8]} 46. Rxa4 {[%clk 0:00:04.8]} 46... Qc1+ {[%clk 0:00:03]} 47.
Kg2 {[%clk 0:00:05.4]} 47... Kf6 {[%clk 0:00:03.5]} 48. Re4 {[%clk 0:00:05.7]}
48... Qa1 {[%clk 0:00:03.2]} 49. Re3 {[%clk 0:00:06.2]} 49... h5 {[%clk
0:00:03.3]} 50. Rf3 {[%clk 0:00:06.7]} 50... Qa8 {[%clk 0:00:03.5]} 51. Nxh5+
{[%clk 0:00:06.9]} 51... Ke5 {[%clk 0:00:03.4]} 52. Ng3 {[%clk 0:00:07.5]} 52...
Qg8 {[%clk 0:00:04]} 53. Bh3 {[%clk 0:00:07.6]} 53... Qh8 {[%clk 0:00:04.9]} 54.
h5 {[%clk 0:00:08.1]} 54... f5 {[%clk 0:00:05.2]} 55. Rxf5+ {[%clk 0:00:08.3]}
55... Kd6 {[%clk 0:00:05.7]} 56. Rg5 {[%clk 0:00:07.7]} 56... Ke7 {[%clk
0:00:06.1]} 57. Rg6 {[%clk 0:00:07.7]} 57... Qa8+ {[%clk 0:00:06.8]} 58. Kg1
{[%clk 0:00:07.1]} 58... Qa2 {[%clk 0:00:07.7]} 59. Bf1 {[%clk 0:00:07.6]} 59...
Qb1 {[%clk 0:00:08.1]} 60. Rg4 {[%clk 0:00:07.4]} 60... Kf7 {[%clk 0:00:08.6]}
61. h6 {[%clk 0:00:07.4]} 61... Qc2 {[%clk 0:00:07.7]} 62. Rh4 {[%clk
0:00:07.4]} 62... Kg8 {[%clk 0:00:08]} 63. h7+ {[%clk 0:00:07]} 63... Kh8 {[%clk
0:00:08.9]} 64. Rh2 {[%clk 0:00:06.9]} 64... Qc3 {[%clk 0:00:08.9]} 65. Be2
{[%clk 0:00:07.1]} 65... Qe1+ {[%clk 0:00:08.4]} 66. Kg2 {[%clk 0:00:07]} 66...
Qc3 {[%clk 0:00:09.3]} 67. Bf3 {[%clk 0:00:07.4]} 67... Qe5 {[%clk 0:00:09.7]}
68. Be4 {[%clk 0:00:07.1]} 68... Qg5 {[%clk 0:00:09.6]} 69. Rh5 {[%clk
0:00:07.3]} 69... Qg7 {[%clk 0:00:08.8]} 70. Ra5 {[%clk 0:00:06.8]} 70... Qf8
{[%clk 0:00:06.3]} 71. Ra8 {[%clk 0:00:06.5]} 1-0

[Event "*** Titled Tuesday Blitz"]
[Site "Chess.com"]
[Date "2020.05.26"]
[Round "5"]
[White "Zakaryan_David"]
[Black "farzadbfd"]
[Result "1-0"]
[WhiteElo "2507"]
[BlackElo "2724"]
[TimeControl "180+1"]
[EndTime "10:58:12 PDT"]
[Termination "Zakaryan_David won by resignation"]

1. e4 {[%clk 0:03:00.9]} 1... e5 {[%clk 0:02:59.7]} 2. Nf3 {[%clk 0:03:00.4]}
2... Nc6 {[%clk 0:02:59.9]} 3. Bb5 {[%clk 0:03:00.5]} 3... a6 {[%clk 0:03:00.4]}
4. Ba4 {[%clk 0:03:00.5]} 4... Nf6 {[%clk 0:03:01]} 5. d3 {[%clk 0:03:00.7]}
5... b5 {[%clk 0:03:01.3]} 6. Bb3 {[%clk 0:02:59.6]} 6... Bc5 {[%clk 0:03:02.2]}
7. O-O {[%clk 0:02:54.4]} 7... d6 {[%clk 0:03:02.7]} 8. a4 {[%clk 0:02:52.7]}
8... Rb8 {[%clk 0:03:02.5]} 9. axb5 {[%clk 0:02:50.8]} 9... axb5 {[%clk
0:03:03.4]} 10. c3 {[%clk 0:02:51.2]} 10... O-O {[%clk 0:03:01.4]} 11. Bg5
{[%clk 0:02:49.2]} 11... h6 {[%clk 0:03:00.9]} 12. Bh4 {[%clk 0:02:45.7]} 12...
Be6 {[%clk 0:03:01.1]} 13. Bc2 {[%clk 0:02:42.7]} 13... d5 {[%clk 0:03:00.3]}
14. d4 {[%clk 0:02:32]} 14... Be7 {[%clk 0:02:40.3]} 15. Nxe5 {[%clk 0:02:08.3]}
15... Nxe5 {[%clk 0:02:32.9]} 16. dxe5 {[%clk 0:02:08]} 16... Nxe4 {[%clk
0:02:32.9]} 17. Bxe7 {[%clk 0:02:03.3]} 17... Qxe7 {[%clk 0:02:33.8]} 18. Nd2
{[%clk 0:02:01.7]} 18... Bf5 {[%clk 0:02:16.7]} 19. f4 {[%clk 0:01:58.6]} 19...
Qc5+ {[%clk 0:02:13.9]} 20. Kh1 {[%clk 0:01:56.7]} 20... Nf2+ {[%clk 0:02:14.5]}
21. Rxf2 {[%clk 0:01:56.8]} 21... Bxc2 {[%clk 0:02:14.1]} 22. Qf3 {[%clk
0:01:50.2]} 22... b4 {[%clk 0:02:10.5]} 23. f5 {[%clk 0:01:44.2]} 23... bxc3
{[%clk 0:02:03.6]} 24. bxc3 {[%clk 0:01:43.3]} 24... Be4 {[%clk 0:01:58.9]} 25.
Qg3 {[%clk 0:01:43.4]} 25... Kh7 {[%clk 0:01:28.4]} 26. Re1 {[%clk 0:01:40.9]}
26... Rb6 {[%clk 0:00:58.4]} 27. Rf4 {[%clk 0:01:38.2]} 27... Bc2 {[%clk
0:00:55.2]} 28. f6 {[%clk 0:01:28.1]} 28... Bg6 {[%clk 0:00:39.5]} 29. fxg7
{[%clk 0:01:26.3]} 29... Kxg7 {[%clk 0:00:40.4]} 30. Rh4 {[%clk 0:01:23.3]}
30... Qe7 {[%clk 0:00:32]} 31. Qf4 {[%clk 0:01:22.2]} 31... Qg5 {[%clk
0:00:31.7]} 32. Nf3 {[%clk 0:01:10.7]} 32... Qxf4 {[%clk 0:00:31.4]} 33. Rxf4
{[%clk 0:01:11.6]} 33... Rb3 {[%clk 0:00:29.9]} 34. c4 {[%clk 0:01:03.7]} 34...
Rb4 {[%clk 0:00:26.9]} 35. Rc1 {[%clk 0:00:55.5]} 35... Ra8 {[%clk 0:00:25.7]}
36. h4 {[%clk 0:00:54.6]} 36... Raa4 {[%clk 0:00:24.9]} 37. Nd2 {[%clk
0:00:46.6]} 37... Bd3 {[%clk 0:00:14.3]} 38. Rg4+ {[%clk 0:00:36.3]} 38... Kh7
{[%clk 0:00:14.1]} 39. Rf4 {[%clk 0:00:36.2]} 39... Kg7 {[%clk 0:00:14.2]} 40.
Rg4+ {[%clk 0:00:36.5]} 40... Kh7 {[%clk 0:00:14.2]} 41. Kh2 {[%clk 0:00:32.1]}
41... dxc4 {[%clk 0:00:14]} 42. Rf4 {[%clk 0:00:30.9]} 42... Bg6 {[%clk
0:00:13.4]} 43. Rcxc4 {[%clk 0:00:28.2]} 43... Rxc4 {[%clk 0:00:13.7]} 44. Rxc4
{[%clk 0:00:29.1]} 44... Rxc4 {[%clk 0:00:14]} 45. Nxc4 {[%clk 0:00:30]} 45...
Bd3 {[%clk 0:00:14.2]} 46. Nb2 {[%clk 0:00:27]} 46... Be2 {[%clk 0:00:13.8]} 47.
Kg3 {[%clk 0:00:27]} 47... Kg6 {[%clk 0:00:14.5]} 48. Kf4 {[%clk 0:00:26.5]}
48... h5 {[%clk 0:00:15.2]} 49. Na4 {[%clk 0:00:25.9]} 49... Bf1 {[%clk
0:00:14.1]} 50. g3 {[%clk 0:00:25.6]} 50... Bb5 {[%clk 0:00:14.6]} 51. Nc5
{[%clk 0:00:25.9]} 51... Bc6 {[%clk 0:00:15.1]} 52. Nd3 {[%clk 0:00:24.8]} 52...
Bd5 {[%clk 0:00:15.3]} 53. Nb4 {[%clk 0:00:20.3]} 53... Bc4 {[%clk 0:00:15.4]}
54. Nc6 {[%clk 0:00:20.2]} 54... Be6 {[%clk 0:00:14.6]} 55. Ne7+ {[%clk
0:00:19.7]} 55... Kh6 {[%clk 0:00:14.1]} 56. Nc6 {[%clk 0:00:19.7]} 56... Bd5
{[%clk 0:00:13.8]} 57. Ne7 {[%clk 0:00:19.2]} 57... c6 {[%clk 0:00:13.1]} 58.
Kf5 {[%clk 0:00:18.2]} 58... Be6+ {[%clk 0:00:12.9]} 59. Kf4 {[%clk 0:00:18.5]}
59... c5 {[%clk 0:00:13.4]} 60. Nc6 {[%clk 0:00:18.8]} 60... c4 {[%clk
0:00:13.8]} 61. Nd4 {[%clk 0:00:19.1]} 61... Kg6 {[%clk 0:00:14.5]} 62. Ne2
{[%clk 0:00:19]} 62... Bd7 {[%clk 0:00:14.6]} 63. Ke3 {[%clk 0:00:18.8]} 63...
Bg4 {[%clk 0:00:13.7]} 64. Nd4 {[%clk 0:00:18.1]} 64... Bc8 {[%clk 0:00:13.7]}
65. Kd2 {[%clk 0:00:18.3]} 65... Ba6 {[%clk 0:00:12.9]} 66. Kc3 {[%clk
0:00:18.4]} 66... f6 {[%clk 0:00:13.5]} 67. e6 {[%clk 0:00:18.3]} 67... f5
{[%clk 0:00:13.9]} 68. e7 {[%clk 0:00:18.6]} 68... Kf7 {[%clk 0:00:14.1]} 69.
Nxf5 {[%clk 0:00:19]} 69... Bb7 {[%clk 0:00:12.9]} 70. Nd6+ {[%clk 0:00:19.1]}
70... Kxe7 {[%clk 0:00:13.5]} 71. Nxb7 {[%clk 0:00:20]} 71... Ke6 {[%clk
0:00:14.1]} 72. Nc5+ {[%clk 0:00:20.2]} 72... Kf5 {[%clk 0:00:14.9]} 73. Kxc4
{[%clk 0:00:19.8]} 73... Kg4 {[%clk 0:00:15.8]} 74. Ne4 {[%clk 0:00:20.2]} 74...
Kf5 {[%clk 0:00:16.7]} 75. Kd4 {[%clk 0:00:20.5]} 75... Kg4 {[%clk 0:00:17.6]}
76. Ke5 {[%clk 0:00:20.7]} 76... Kf3 {[%clk 0:00:17.9]} 77. Kf5 {[%clk 0:00:21]}
77... Ke3 {[%clk 0:00:17.8]} 78. Nf6 {[%clk 0:00:21.1]} 78... Kf3 {[%clk
0:00:18.7]} 79. Nxh5 {[%clk 0:00:21.8]} 79... Kg2 {[%clk 0:00:19]} 80. g4 {[%clk
0:00:22.2]} 80... Kh3 {[%clk 0:00:19.9]} 81. g5 {[%clk 0:00:22.6]} 81... Kxh4
{[%clk 0:00:20.8]} 82. g6 {[%clk 0:00:23]} 82... Kxh5 {[%clk 0:00:21.7]} 83. g7
{[%clk 0:00:23.3]} 83... Kh4 {[%clk 0:00:22.4]} 84. g8=Q {[%clk 0:00:23.5]}
84... Kh3 {[%clk 0:00:23.3]} 85. Kf4 {[%clk 0:00:23.8]} 1-0